Cogmind - Beta 14 @@@ ROGUE MODE // 2025.03.18 @ 23:05:42 Player: ochotona_princeps Result: Self-destructed Performance ------------- Evolutions (2) 1000 Regions Visited (5) 1000 Robots Destroyed (15) 75 Value Destroyed (347) 347 Prototype IDs (3) 60 Alien Tech Used (0) 0 Bonus (0) 0 TOTAL SCORE: 2482 Bonus ------- None Cogmind --------- Core Integrity 489/550 Matter 248/300 Energy 100/100 System Corruption 0% Temperature Cool (0) Movement Core (50) Location -8/Materials Parts ------- > --- POWER (1) -------- (None) > --- PROPULSION (2) --- (None) > --- UTILITY (6) ------ Terrain Scan Processor > --- WEAPON (2) ------- Mining Claw > --- INVENTORY (5) ---- Terrain Scanner Utility Shielding Datajack Mining Laser Plasma Flamer Peak State ------------ > --- POWER ------------ (None) > --- PROPULSION ------- Hover Unit > --- UTILITY ---------- Experimental Sensor Array Terrain Scan Processor > --- WEAPON ----------- Plasma Flamer Mining Claw > --- INVENTORY -------- Terrain Scanner Utility Shielding Grenade Launcher Datajack Mining Laser [Rating: 18] Favorites ----------- Power Ion Engine Engine Ion Engine Propulsion Light Treads Treads Light Treads Hover Unit Hover Unit Utility Small Storage Unit Device Heat Sink Storage Small Storage Unit Processor Terrain Scan Processor Hackware Hacking Suite Weapon Mining Claw Energy Gun EM Pulse Gun Energy Cannon Beam Cannon Ballistic Gun Light Assault Rifle Launcher Grenade Launcher Special Weapon Plasma Flamer Slashing Weapon Mining Claw Special Melee Weapon Datajack Build | -11 -10 -10 -10 -9 -8 ------- Run | Yrd Mat Min Exi Min Mat Slots Evolved 4 | . . . . . 4 Power . | . . . . . . Propulsion . | . . . . . . Utility 4 | . . . . . 4 Weapon . | . . . . . . Parts Attached 32 | 7 18 4 . 1 2 Power 3 | 2 1 . . . . Engine 3 | 2 1 . . . . Core . | . . . . . . Reactor . | . . . . . . Propulsion 4 | 2 2 . . . . Treads 2 | 2 . . . . . Leg . | . . . . . . Wheel . | . . . . . . Hover 2 | . 2 . . . . Flight . | . . . . . . Utility 11 | 1 6 2 . 1 1 Device 6 | . 2 2 . 1 1 Storage 3 | 1 2 . . . . Processor 1 | . 1 . . . . Hackware 1 | . 1 . . . . Protection . | . . . . . . Artifact . | . . . . . . Weapon 14 | 2 9 2 . . 1 Energy Gun 1 | 1 . . . . . Energy Cannon 1 | . 1 . . . . Ballistic Gun 3 | 1 2 . . . . Ballistic Cannon . | . . . . . . Launcher 2 | . 1 . . . 1 Special Weapon 3 | . 1 2 . . . Impact Weapon . | . . . . . . Slashing Weapon 3 | . 3 . . . . Piercing Weapon . | . . . . . . Special Melee Weapon 1 | . 1 . . . . Unidentified Prototypes 1 | . . 1 . . . Parts Lost 8 | . 5 . . 1 2 Power 1 | . 1 . . . . Propulsion 2 | . 1 . . 1 . Utility 2 | . 1 . . . 1 Weapon 3 | . 2 . . . 1 Highest Loss Streak 3 | . 3 . . 1 3 To Critical Strikes . | . . . . . . Average Slot Usage (%) 73 | . 76 71 71 71 29 Engine 7 | . 12 . . . . Treads 11 | . 18 . . . . Hover 7 | . 3 14 14 14 . Device 9 | . 6 14 14 14 4 Storage 5 | . 9 . . . . Processor 5 | . . 14 14 14 9 Hackware 1 | . 1 . . . . Energy Gun 1 | . 2 . . . . Energy Cannon 1 | . 2 . . . . Ballistic Gun 4 | . 7 . . . . Special Weapon 5 | . 1 14 14 14 2 Slashing Weapon 10 | . 8 14 14 14 9 Peak Build Rating 18 | 6 7 14 11 18 18 Average Rating 8 | 4 5 7 11 17 10 On Entrance 8 | . 6 5 11 11 17 Naked Turns 1 | . 1 . . . . Heaviest Build 16 | 14 16 6 6 6 6 Greatest Support 40 | 40 40 6 6 6 3 Greatest Overweight (x) 1 | . . . . 1 1 Average Overweight (x) . | . . . . . . Largest Inventory Capacity 20 | 8 20 5 5 5 5 Average Capacity 6 | 5 7 5 5 5 5 Most Carried 8 | 5 8 5 5 5 5 Average Carried 4 | 2 4 4 5 5 4 Final Capacity 8 | 8 5 5 5 5 5 Final Carried 5 | 4 5 5 5 5 5 Class Distribution -------------------- 100% | Mutant Dominant Class ---------------- Mutant | -10/Materials Mutant | -10/Mines Mutant | -10/Exiles Mutant | -9/Mines Mutant | -8/Materials Resources | -11 -10 -10 -10 -9 -8 ----------- Run | Yrd Mat Min Exi Min Mat Matter Collected 564 | 237 272 40 . 15 . Remotely . | . . . . . . Salvage Created 366 | . 345 . . . 21 Parts 29 | . 25 . . . 4 Haulers Intercepted . | . . . . . . Recyclers Shooed 1 | . . . . . 1 Parts Field Recycled . | . . . . . . Retrieved Matter . | . . . . . . Parts Self-Destructed . | . . . . . . Prevented . | . . . . . . Kills | -11 -10 -10 -10 -9 -8 ------- Run | Yrd Mat Min Exi Min Mat Combat Hostiles Destroyed 12 | . 9 . . . 3 Melee 3 | . 2 . . . 1 Guns 2 | . 2 . . . . Cannons 2 | . 2 . . . . AOE 5 | . 3 . . . 2 Classes Destroyed 5 | . 5 . . . . Builder 1 | . 1 . . . . Operator 1 | . 1 . . . . Watcher 1 | . 1 . . . . Swarmer 6 | . 3 . . . 3 Grunt 6 | . 6 . . . . Best Kill Streak 4 | . 4 . . . 3 Combat Bots Only 4 | . 4 . . . 3 Max Kills in Single Turn 2 | . 1 . . . 2 Gunslinging . | . . . . . . Exploded 2 | . 1 . . . 2 Melee 1 | . 1 . . . 1 Uniques/NPCs Destroyed . | . . . . . . Combat | -11 -10 -10 -10 -9 -8 -------- Run | Yrd Mat Min Exi Min Mat Hostile Shots Fired 81 | . 62 . . 3 16 Missed 22 | . 20 . . . 2 Damage Taken 721 | . 568 . . 34 119 Core 168 | . 95 . . 12 61 Absorbed by Shields . | . . . . . . Core Remaining (%) 78 | 100 . . . 57 . Volleys Fired 40 | . 37 . . . 3 Largest 2 | . 2 . . . 1 Hottest 100 | . 100 . . . 30 Shots Fired 46 | . 43 . . . 3 Gun 27 | . 27 . . . . Cannon 10 | . 10 . . . . Launcher 8 | . 5 . . . 3 Special 1 | . 1 . . . . Kinetic 17 | . 17 . . . . Thermal 11 | . 11 . . . . Explosive 8 | . 5 . . . 3 Electromagnetic 10 | . 10 . . . . Robot Hit Streak 9 | . 9 . . . . Robot Miss Streak 4 | . 4 . . . 1 Penetration Max . | . . . . . . Secondary Targets . | . . . . . . Shots Hit Robots 38 | . 36 . . 1 1 Core Hits 19 | . 16 . . . 3 Critical Kills . | . . . . . . Critical Parts Destroyed . | . . . . . . Critical Strikes . | . . . . . . Melee Attacks 44 | . 37 . . 1 6 Impact . | . . . . . . Slashing 42 | . 35 . . 1 6 Piercing . | . . . . . . Sneak Attacks 5 | . 4 . . 1 . Combat Hostiles . | . . . . . . Follow-up Attacks . | . . . . . . Damage Inflicted 1161 | . 893 . . . 268 Guns 179 | . 179 . . . . Cannons 102 | . 102 . . . . Explosions 613 | . 368 . . . 245 Melee 267 | . 244 . . . 23 Ramming . | . . . . . . Kinetic 98 | . 98 . . . . Thermal 102 | . 102 . . . . Explosive 613 | . 368 . . . 245 Electromagnetic 81 | . 81 . . . . Impact . | . . . . . . Slashing 267 | . 244 . . . 23 Piercing . | . . . . . . Highest Corruption 2 | . 2 2 2 2 . Average Corruption 2 | . 2 2 2 2 . Corruption Purged . | . . . . . . Corruption Blocked . | . . . . . . Effects 6 | . 1 . 2 3 . Message Errors 1 | . . . 1 . . Matter Fused 3 | . . . 1 2 . Data Loss (minor) 2 | . 1 . . 1 . Overload Shots . | . . . . . . Overflow Damage 105 | . 101 . . . 4 Projectiles . | . . . . . . Explosions 42 | . 38 . . . 4 Melee 63 | . 63 . . . . Knockbacks . | . . . . . . Impact . | . . . . . . Kinetic . | . . . . . . Secondary . | . . . . . . Self-Inflicted Damage 57 | . 53 . . . 4 Shots 5 | . 4 . . . 1 Rammed . | . . . . . . Targets Rammed . | . . . . . . Kicked . | . . . . . . Crushed . | . . . . . . Highest Temperature 93 | . 93 . . . . Average Temperature 34 | . 34 . . . . Received Heat Transfer 282 | . 264 . . 18 . Siege Activations . | . . . . . . Robots Corrupted . | . . . . . . Combat Hostiles . | . . . . . . Parts Fried . | . . . . . . Impact Corruptions . | . . . . . . Robots Melted . | . . . . . . Combat Hostiles . | . . . . . . Parts Melted . | . . . . . . Heat Transferred 222 | . 222 . . . . Parts Sabotaged . | . . . . . . Parts Stolen . | . . . . . . Parts Stripped . | . . . . . . Power Chain Reactions . | . . . . . . Alert | -11 -10 -10 -10 -9 -8 ------- Run | Yrd Mat Min Exi Min Mat Peak Influence 193 | . 193 75 . . 108 Initial 75 | . . 75 . . . Average 48 | . 58 75 . . 46 Maximum Alert Level . | . . . . . . Low Security (%) 100 | 100 100 100 . 100 100 Level 1 . | . . . . . . Level 2 . | . . . . . . Level 3 . | . . . . . . Level 4 . | . . . . . . Level 5 . | . . . . . . High Security . | . . . . . . Max Security . | . . . . . . Squads Dispatched 2 | . 2 . . . . Investigation 1 | . 1 . . . . Extermination . | . . . . . . Reinforcement 1 | . 1 . . . . Assault . | . . . . . . Garrison . | . . . . . . Intercept . | . . . . . . Searches Triggered . | . . . . . . Construction Impeded . | . . . . . . Haulers Reinforced . | . . . . . . Active Scanning Responses . | . . . . . . Cargo Convoy Interrupts . | . . . . . . Stealth | -11 -10 -10 -10 -9 -8 --------- Run | Yrd Mat Min Exi Min Mat Distress Signals 1 | . 1 . . . . Communications Jammed . | . . . . . . Distress Signals . | . . . . . . Times Spotted 26 | . 20 . . 3 3 Peak Tracking Total 5 | . 5 . . 3 3 Tactical Retreats 3 | . 3 . . . . Traps | -11 -10 -10 -10 -9 -8 ------- Run | Yrd Mat Min Exi Min Mat Traps Triggered 2 | . 2 . . . . Indirectly . | . . . . . . Trap Hack Attempts . | . . . . . . Triggered . | . . . . . . Disarmed . | . . . . . . Reprogrammed . | . . . . . . Reused . | . . . . . . Traps Extracted . | . . . . . . Installed . | . . . . . . Triggered . | . . . . . . Machines | -11 -10 -10 -10 -9 -8 ---------- Run | Yrd Mat Min Exi Min Mat Machines Disabled 2 | . . . . . 2 Max in Single Turn 2 | . . . . . 2 Machines Repaired . | . . . . . . Machines Dismantled . | . . . . . . Machines Sabotaged . | . . . . . . Overloaded Fab Kills . | . . . . . . Hacking | -11 -10 -10 -10 -9 -8 --------- Run | Yrd Mat Min Exi Min Mat Machines Accessed 8 | . 7 . 1 . . Terminals 7 | . 7 . . . . Fabricators . | . . . . . . Repair Stations . | . . . . . . Recycling Units . | . . . . . . Scanalyzers . | . . . . . . Garrison Access . | . . . . . . Total Hacks 43 | . 20 . 23 . . Successful 33 | . 10 . 23 . . Failed 10 | . 10 . . . . Catastrophic 3 | . 3 . . . . Database Lockouts . | . . . . . . Manual 13 | . 13 . . . . Terminals 20 | . 20 . . . . Fabricators . | . . . . . . Repair Stations . | . . . . . . Recycling Units . | . . . . . . Scanalyzers . | . . . . . . Garrison Access . | . . . . . . Terminal Hacks 30 | . 7 . 23 . . Record 24 | . 1 . 23 . . Prototype ID Bank 1 | . 1 . . . . Emergency Access Points 1 | . 1 . . . . Terminal Index 1 | . 1 . . . . Alert Level 1 | . 1 . . . . Maintenance Status 1 | . 1 . . . . Hauler Manifests 1 | . 1 . . . . Fabricator Hacks . | . . . . . . Repair Station Hacks . | . . . . . . Recycling Unit Hacks . | . . . . . . Scanalyzer . | . . . . . . Garrison Access Hacks . | . . . . . . Unauthorized Hacks 3 | . 3 . . . . Terminals 3 | . 3 . . . . Botnet 2 | . 2 . . . . Operators 1 | . 1 . . . . Fabricators . | . . . . . . Repair Stations . | . . . . . . Recycling Units . | . . . . . . Scanalyzers . | . . . . . . Garrison Access . | . . . . . . Data Cores Recovered . | . . . . . . Used . | . . . . . . Hacking Detections 7 | . 7 . . . . Full Trace Events 3 | . 3 . . . . Feedback Events 1 | . 1 . . . . Hackware Fried 1 | . 1 . . . . Feedback Blocked . | . . . . . . Robot Schematics Acquired . | . . . . . . Robots Built . | . . . . . . Authchips . | . . . . . . Time . | . . . . . . Total Robot Build Rating . | . . . . . . Part Schematics Acquired . | . . . . . . Parts Built . | . . . . . . Authchips . | . . . . . . Time . | . . . . . . Total Part Build Rating . | . . . . . . Parts Repaired . | . . . . . . Time . | . . . . . . Parts Recycled . | . . . . . . Recycled Matter . | . . . . . . Retrieved Matter . | . . . . . . Retrieved Components . | . . . . . . Parts Scanalyzed . | . . . . . . Part Schematics Acquired . | . . . . . . Parts Damaged . | . . . . . . Bothacking | -11 -10 -10 -10 -9 -8 ------------ Run | Yrd Mat Min Exi Min Mat Used RIF Installer . | . . . . . . Robots Hacked 1 | . 1 . . . . Non-combat 1 | . 1 . . . . Combat . | . . . . . . Robot Hacks Applied 1 | . 1 . . . . parse_system 1 | . 1 . . . . Relay Couplers Released . | . . . . . . Fabnet Peak Effective % . | . . . . . . Robots Rewired . | . . . . . . Allies Hacked . | . . . . . . Hacks Repelled . | . . . . . . Allies | -11 -10 -10 -10 -9 -8 -------- Run | Yrd Mat Min Exi Min Mat Total Allies 1 | . . 1 . . . Largest Group 1 | . . 1 . . . Highest-Rated Group 31 | . . 31 . . . Highest-Rated Ally 31 | . . 31 . . . Total Orders . | . . . . . . Ally Attacks . | . . . . . . Total Damage . | . . . . . . Kills . | . . . . . . Allies Corrupted . | . . . . . . Allies Melted . | . . . . . . Intel | -11 -10 -10 -10 -9 -8 ------- Run | Yrd Mat Min Exi Min Mat Robot Analysis Total . | . . . . . . Derelict Logs Recovered . | . . . . . . Drone Launches . | . . . . . . Drone Recoveries . | . . . . . . Exploration | -11 -10 -10 -10 -9 -8 ------------- Run | Yrd Mat Min Exi Min Mat Turns Passed 1735 | 91 1001 168 220 213 42 Spaces Moved 1643 | 51 739 261 366 212 14 Core 194 | 3 174 . . 3 14 Treads 374 | 48 326 . . . . Legs . | . . . . . . Wheels . | . . . . . . Hover 1075 | . 239 261 366 209 . Flight . | . . . . . . Fastest Speed 50 | 50 50 60 60 60 50 Average Speed 82 | 153 101 60 60 60 96 Slowest Speed 160 | 160 160 60 60 100 100 Overloaded Moves . | . . . . . . Propulsion Burnouts . | . . . . . . Robots Hopped . | . . . . . . Cave-ins Triggered . | . . . . . . Exploration Rate (%) 46 | 3 86 67 83 35 3 Regions Visited 5 Branch Regions 3 Pre-discovered Areas 1 | . . . 1 . . Known Exits Taken . | . . . . . . Unknown Exits Taken 5 | 1 1 1 1 1 . Scrap Searched 4 | . . 2 . 2 . Spaces Dug 15 | . 15 . . . . Terrain Destroyed 49 | . 15 . . . 34 Melee 9 | . 9 . . . . Projectile . | . . . . . . AOE 40 | . 6 . . . 34 Terrain Rammed . | . . . . . . Walls Destroyed . | . . . . . . Machines Disabled . | . . . . . . Actions | -11 -10 -10 -10 -9 -8 --------- Run | Yrd Mat Min Exi Min Mat Total 1892 | 61 874 271 365 294 27 Wait 104 | . 22 . . 81 1 Move 1638 | 50 738 260 365 211 14 Hop . | . . . . . . Pick Up 16 | 4 9 3 . . . Fast Attach 13 | 5 6 2 . . . Attach 8 | 1 6 . . . 1 Detach 3 | . 2 . . . 1 Swap 11 | 1 6 2 . 1 1 Drop 15 | . 11 4 . . . Fire 40 | . 37 . . . 3 Melee 44 | . 37 . . 1 6 Ram . | . . . . . . Kick . | . . . . . . Crush . | . . . . . . Escape Stasis . | . . . . . . Rewire . | . . . . . . Trap . | . . . . . . Miscellaneous . | . . . . . . Route ------- -11/Scrapyard -10/Materials (discovered 4 exits: [*Mat x2] / [*Min] / [*Sub]) -10/Mines -10/Exiles (discovered 2 exits: [*Min x2]) -9/Mines -8/Materials History --------- Turn | Location | Event 6 | -11/Scrapyard | Discovered new exit (range 16) 92 | -11/Scrapyard | Entered Materials 329 | -10/Materials | Build established: Mutant 749 | -10/Materials | Discovered new exit (range 16) 778 | -10/Materials | Discovered new exit (range 14) 867 | -10/Materials | Discovered new exit (range 11) 982 | -10/Materials | Hacking Suite fried by hacking feedback 1013 | -10/Materials | Lost 3 parts (1p1n1u) 1037 | -10/Materials | Discovered new exit (range 9) 1093 | -10/Materials | Entered Mines 1096 | -10/Mines | Received a Mining Laser from a helpful Derelict 1104 | -10/Mines | Met a Derelict bent on vengeance 1193 | -10/Mines | Found a damaged Exp. Sensor Array with a note attached 1195 | -10/Mines | Found Prototype Device 1199 | -10/Mines | Identified Exp. Sensor Array 1211 | -10/Mines | A weapon hastily lodged in a ceiling crevice suddenly fell to the ground 1258 | -10/Mines | Deemed a non-threat by the Exiles lab entrance 1258 | -10/Mines | Discovered new exit (range 5) 1261 | -10/Mines | Entered Exiles 1270 | -10/Exiles | Discovered new exit (range 15) 1280 | -10/Exiles | Met 8R-AWN 1289 | -10/Exiles | Met EX-HEX 1313 | -10/Exiles | Met EX-DEC 1333 | -10/Exiles | Visited The Gauntlet 1412 | -10/Exiles | Learned location of Zion (-7) 1432 | -10/Exiles | Met EX-BIN 1475 | -10/Exiles | Discovered new exit (range 11) 1481 | -10/Exiles | Entered Mines 1610 | -9/Mines | Discovered new exit (range 12) 1694 | -9/Mines | Entered Materials 1694 | -8/Materials | Evolved 4 slots: Utility x4 1736 | -8/Materials | Self-destructed Last Messages --------------- 01603_ U-05 Engineer Wheel ripped off. 01610_ EXIT=FOUND 01622_ K-01 Serf collects debris. 01623_ System corrupted: Matter fused (-7). 01678_ System corrupted: Matter fused (-10). 01692_ Hover Unit destroyed. PARAMETERS=UTILITY+4 LOCATION=UNKNOWN GOAL=ESCAPE 01709_ C-30 ARC bursts open, deploying its payload. 01709_ S-10 Pest unfolds itself. 01714_ S-10 Pest destroyed. 01719_ Exp. Sensor Array destroyed. 01720_ Nuclear Reactor explodes. 01720_ Scanalyzer disabled. 01720_ Destroyed Com. Wheel. 01724_ Grenade Launcher destroyed. 01733_ The unstable cave ceiling collapses. 01733_ S-10 Pest destroyed. Map ----- +----------------------------------------------------+ | ?????????????????????????????????????????????????? | | ?????????????????????????????????????????????????? | | ?????????????????????????????????????????????????? | | ?????????????????????????????????????????????????? | | ?????????????????????????????????????????????????? | | ?????????????????????????????????????????????????? | | ?????????????????????????????????????????????????? | | ?????????????????????????????????????????????????? | | ?????????????????????????????????????????????????? | | ?????????????????????????????????????????????????? | | ?????????????????????????????????????????????????? | | ?????????????????????????????????????????????????? | | ????????????????????????????#####????????????????? | | ???????????????????????#???# ?????????????????? | | ???????????????????????????# ?????????????????? | | ???????????????????????????# ?????????????????? | | ???????????????????????????# #?????????????????? | | ???????????????????????????# #?????????????????? | | ???????????????????????????# #?????????????????? | | ???????????????????????????# #???????#?????????? | | ??????????????????????#????# #?????????????????? | | ???????????????############# #?????????????????? | | ???????????????# # #?????????????????? | | ???????????????# [ [! + ######????????????? | | ???????????????# # ?????? | | ???????????????# @ # ###### ##?????????? | | ???????????????# " # #?????????????????? | | ???????????????# " #####?????????????????? | | ???????????????# " #??????#??????????????? | | ????????????? t % " #?????????????????????? | | ????????????##### +???? ????????????????? | | ????????????????# ###?????????????????????? | | ????????????????#### #####???????????????????????? | | ???????????????????##????????????????????????????? | | ??????????????????????????#??????????????????????? | | ?????????????????????????????????????????????????? | | ?????????????????????????????????????????????????? | | | | | | | | | | | | | | | | | | | | | | | | | | | +----------------------------------------------------+ Best States ------------- Heat Dissipation 35 Energy Generation 10 Energy Capacity 250 Matter Stores 300 Matter Capacity 300 Sight Range 16 Robot Scan Range 20 Terrain Scan Range 14 Terrain Scan Density 85 Evasion (%) 53 Recoil Reduction 2 Offensive Hacking 10 Item Schematics ----------------- None Robot Schematics ------------------ None Fabricated ------------ Nothing Alien Tech Used ----------------- None Achievements -------------- None Challenges ------------ None Game ------ Seed StealthSniperSink Manual? 0 Play Time 00:30:39 Cumulative 189.8 hours Start 2025.03.18 @ 17:40:02 End 2025.03.18 @ 23:05:42 Sessions 3 Manual Loads 0 Difficulty Rogue Special Mode None Game No. 182 Rogue 121 Adventurer 61 Explorer 0 Win Type - Total 9 Types 7/0/2/0/0/0/0/0/0 Lore% 30 Gallery% 62 Achievement% 60 Wizard Run 0 Options --------- Layout 1 ASCII 0 Keyboard 0 Movement Numpad Keybinds 0 Fullscreen 2 Font 32/SmallcapsGlow Map View 50x35 Zoom Use 17% Tactical HUD 1 Map Filters NONE Filters NONE Steam 1 RUN: e192ff14-70c5-4965-9127-74f5cdbca1f3